bitfinex/quotes_BTCUSD_20251221
["timestamp","ask_amount","ask_price","bid_price","bid_amount"]
[1766346339254,0.00568,88492.0,88479.0,0.0734894]
[1766346339461,0.00568,88492.0,88482.0,0.01130173]
[1766346340074,0.00568,88492.0,88483.0,0.0113016]
[1766346342202,0.00568,88492.0,88482.0,0.01130173]
[1766346342429,0.00568,88492.0,88483.0,0.0113016]
[1766346342621,0.00568,88492.0,88482.0,0.01130173]
[1766346342850,0.00568,88492.0,88479.0,0.0734894]
[1766346342851,0.01698045,88492.0,88479.0,0.00568]
[1766346343078,0.01698045,88492.0,88478.0,0.01130186]
[1766346343079,0.01130083,88489.0,88478.0,0.01130186]
[1766346343215,0.0678035,88491.0,88478.0,0.01130224]
[1766346343216,0.01130058,88491.0,88478.0,0.01130224]
[1766346343421,0.01130058,88491.0,88479.0,0.01130211]
[1766346343645,0.01130058,88491.0,88478.0,0.01130224]
[1766346344050,0.03055296,88492.0,88476.0,0.06781453]
[1766346344254,0.01130058,88491.0,88477.0,0.01130237]
[1766346344611,0.01130058,88491.0,88479.0,0.01130211]
[1766346344749,0.01130071,88490.0,88478.0,0.01130224]
[1766346347348,0.01130058,88491.0,88476.0,0.0113025]
[1766346347555,0.01130071,88490.0,88478.0,0.01130224]
[1766346348174,0.02260321,88490.0,88478.0,0.01130224]
[1766346348378,0.0113025,88490.0,88476.0,0.06781436]
[1766346348586,0.0113025,88490.0,88479.0,0.01130211]
[1766346349695,0.02260321,88490.0,88476.0,0.06781467]
[1766346349902,0.0113025,88490.0,88479.0,0.01130211]
[1766346350329,0.0113025,88490.0,88478.0,0.01130224]
[1766346351568,0.0113025,88490.0,88479.0,0.01130211]
[1766346352247,0.0113025,88490.0,88478.0,0.01130224]
[1766346352480,0.0113025,88490.0,88479.0,0.01130211]
[1766346353531,0.0113025,88490.0,88476.0,0.06781479]
[1766346353749,0.0113025,88490.0,88478.0,0.01130224]
[1766346354162,0.02260321,88490.0,88478.0,0.01130224]
[1766346354374,0.02260321,88490.0,88477.0,0.01130237]
[1766346354582,0.02260321,88490.0,88478.0,0.01130224]
[1766346355260,0.01130083,88489.0,88477.0,0.01130237]
[1766346355487,0.02260321,88490.0,88479.0,0.01130211]
[1766346355488,0.0113025,88490.0,88479.0,0.01130211]
[1766346355886,0.0113025,88490.0,88480.0,0.01130198]
[1766346356299,0.0111025,88490.0,88480.0,0.01130198]
[1766346356527,0.0111025,88490.0,88479.0,0.01130211]
[1766346356722,0.0111025,88490.0,88480.0,0.01130198]
[1766346358626,0.0111025,88490.0,88481.0,0.01130186]
[1766346359075,0.0111025,88490.0,88480.0,0.01130198]
[1766346359494,0.0111025,88490.0,88477.0,0.01130237]
[1766346359712,0.0111025,88490.0,88479.0,0.01130211]
[1766346359922,0.0111025,88490.0,88478.0,0.01130224]
[1766346360946,0.0111025,88490.0,88476.0,0.0113025]
[1766346361153,0.0111025,88490.0,88479.0,0.01130211]
[1766346365283,0.01130096,88488.0,88475.0,0.12958224]
[1766346365490,0.00568,88487.0,88479.0,0.01110211]
[1766346368328,0.00568,88487.0,88478.0,0.01130224]
[1766346368531,0.00568,88487.0,88479.0,0.01130211]
[1766346369894,0.00568,88487.0,88478.0,0.01130224]
[1766346370100,0.00568,88487.0,88480.0,0.01130198]
[1766346370531,0.00548,88487.0,88480.0,0.01130198]
[1766346370907,0.00548,88487.0,88479.0,0.01130211]
[1766346372069,0.00548,88487.0,88480.0,0.01130198]
[1766346373358,0.00548,88487.0,88479.0,0.01130211]
[1766346373562,0.00548,88487.0,88480.0,0.01130198]
[1766346374534,0.00548,88487.0,88481.0,0.01130186]
[1766346375642,0.00548,88487.0,88480.0,0.01130198]
[1766346376049,0.00548,88487.0,88481.0,0.01130186]
[1766346376243,0.00548,88487.0,88480.0,0.01130198]
[1766346376426,0.00548,88487.0,88481.0,0.01130186]
[1766346376630,0.00548,88487.0,88480.0,0.01130198]
[1766346377763,0.00548,88487.0,88474.0,0.19792275]
[1766346377974,0.00548,88487.0,88476.0,0.0113025]
[1766346378407,0.00548,88487.0,88479.0,0.01130211]
[1766346378615,0.00548,88487.0,88478.0,0.01130224]
[1766346379396,0.00548,88487.0,88479.0,0.01130211]
[1766346379995,0.00548,88487.0,88480.0,0.01130198]
[1766346380201,0.00548,88487.0,88479.0,0.01130211]
[1766346384576,0.00493,88487.0,88481.0,0.01130186]
[1766346384992,0.00493,88487.0,88480.0,0.01130198]
[1766346385146,0.00493,88487.0,88481.0,0.01130186]
[1766346385347,0.00493,88487.0,88479.0,0.01130211]
[1766346386933,0.00493,88487.0,88479.0,0.02260422]
[1766346387156,0.00493,88487.0,88479.0,0.01130211]
[1766346387342,0.00493,88487.0,88479.0,0.02260422]
[1766346388142,0.00493,88487.0,88466.0,0.01130377]
[1766346388143,0.01130186,88481.0,88466.0,0.01130377]
[1766346388339,0.06780888,88484.0,88470.0,0.01130326]
[1766346388610,0.01130186,88481.0,88469.0,0.01120186]
[1766346388813,0.01130186,88481.0,88469.0,0.02250525]
[1766346388995,0.00568,88480.0,88470.0,0.01130326]
[1766346389189,0.00568,88480.0,88469.0,0.02250525]
[1766346389190,0.01130224,88478.0,88469.0,0.01120186]
[1766346389421,0.01130224,88478.0,88460.0,0.47210751]
[1766346389422,0.0565125,88476.0,88458.0,0.05652341]
[1766346389631,0.00055,88469.0,88460.0,0.01130454]
[1766346389851,0.00055,88469.0,88459.0,0.01130467]
[1766346389852,0.00055,88469.0,88461.0,0.03395261]
[1766346390053,0.01698301,88472.0,88460.0,0.01130454]
[1766346390277,0.00568,88472.0,88460.0,0.0113048]
[1766346390478,0.01698301,88472.0,88459.0,0.01130467]
[1766346390724,0.01130326,88470.0,88458.0,0.0339533]
[1766346390925,0.01130326,88470.0,88459.0,0.00010706]
[1766346390926,0.01130364,88467.0,88459.0,0.00010706]
[1766346391406,0.06782223,88467.0,88459.0,0.00010706]
[1766346391644,0.01130352,88468.0,88459.0,0.00010706]
[1766346391645,0.01130364,88468.0,88459.0,0.00010706]
[1766346392350,0.01130364,88468.0,88454.0,0.17567647]
[1766346392351,0.01130364,88468.0,88452.0,0.00505]
[1766346392352,0.01130492,88457.0,88452.0,0.00505]
[1766346392525,0.01130492,88457.0,88452.0,5.245e-05]
[1766346392526,0.00568,88457.0,88452.0,5.245e-05]
[1766346392850,0.00044055,88452.0,88445.0,0.01130646]
[1766346393082,0.01698492,88457.0,88448.0,0.05008483]
[1766346393292,0.01130505,88456.0,88448.0,0.05008483]
[1766346393625,0.01698492,88457.0,88448.0,0.05008483]
[1766346393836,0.01130505,88456.0,88448.0,0.05008483]
[1766346394698,0.01130543,88453.0,88448.0,0.04953683]
[1766346395104,0.06783268,88453.0,88448.0,0.03405658]
[1766346395286,0.01130569,88451.0,88448.0,0.03405658]
[1766346395477,0.01130556,88452.0,88448.0,0.03405658]
[1766346395728,0.01130569,88451.0,88448.0,0.03405658]
[1766346395931,0.00568,88451.0,88448.0,0.03405658]
[1766346396283,0.005131,88451.0,88448.0,0.03405658]
[1766346396922,0.03396229,88450.0,88448.0,0.03405658]
[1766346397132,0.005131,88451.0,88448.0,0.03247708]
[1766346397539,0.03396229,88450.0,88448.0,0.03247708]
[1766346398388,0.005131,88451.0,88448.0,0.03247708]
[1766346398553,0.03909329,88451.0,88448.0,0.03247708]
[1766346400727,0.03854329,88451.0,88448.0,0.03247708]
[1766346403337,0.03854329,88451.0,88448.0,0.04378315]
[1766346404430,0.03854329,88451.0,88448.0,0.0113909]
[1766346404869,0.004581,88451.0,88448.0,0.01028576]
[1766346405108,0.0113909,88450.0,88448.0,0.01028576]
[1766346405515,0.01130377,88466.0,88452.0,0.01130556]
[1766346405659,0.00568,88465.0,88454.0,0.11443]
[1766346405856,0.01130633,88461.0,88454.0,0.11443]
[1766346406189,0.01120633,88461.0,88453.0,0.18914]
[1766346406393,0.01120633,88461.0,88450.0,0.12573582]
[1766346406600,0.01120633,88461.0,88452.0,0.01130556]
[1766346406956,0.01120633,88461.0,88453.0,0.01130543]
[1766346407700,0.01120633,88461.0,88452.0,0.01130556]
[1766346407994,0.00568,88460.0,88452.0,0.01130556]
[1766346411510,0.00568,88460.0,88453.0,0.01130543]
[1766346411706,0.00568,88460.0,88454.0,0.01130531]
[1766346412106,0.00568,88460.0,88453.0,0.01130543]
[1766346412312,0.00568,88460.0,88454.0,0.01130531]
[1766346412692,0.00568,88460.0,88453.0,0.01130543]
[1766346413265,0.00568,88460.0,88452.0,0.01130556]
[1766346413449,0.00568,88460.0,88453.0,0.01130543]
[1766346413877,0.00568,88460.0,88452.0,0.01130556]
[1766346414019,0.00568,88460.0,88451.0,0.01130569]
[1766346414382,0.00568,88460.0,88453.0,0.01130543]
[1766346416526,0.00568,88460.0,88452.0,0.01130556]
[1766346417945,0.00568,88460.0,88453.0,0.01130543]
[1766346419231,0.00568,88460.0,88452.0,0.01130556]
[1766346419409,0.00568,88460.0,88453.0,0.01130543]
[1766346419612,0.01357251,88459.0,88453.0,0.01130543]
[1766346419813,0.01357251,88459.0,88452.0,0.01025864]
[1766346420016,0.01357251,88459.0,88452.0,0.01015864]
[1766346420222,0.01357251,88459.0,88453.0,0.01130543]
[1766346420878,0.01357251,88459.0,88452.0,0.01015864]
[1766346421759,0.01357251,88459.0,88447.0,0.25697702]
[1766346421942,0.01357251,88459.0,88447.0,0.18914]
[1766346421943,0.000549,88452.0,88447.0,0.18914]
[1766346422157,0.00568,88455.0,88447.0,0.2004462]
[1766346422780,0.00568,88455.0,88447.0,0.0113062]
[1766346422977,0.00568,88455.0,88441.0,0.23914]
[1766346422978,0.001099,88447.0,88441.0,0.23914]
[1766346423137,0.001099,88447.0,88441.0,0.05]
[1766346423343,0.00568,88448.0,88441.0,0.05]
[1766346423562,0.0113062,88447.0,88441.0,0.05]
[1766346423972,0.01698607,88448.0,88441.0,0.05]
[1766346424179,0.01357251,88445.0,88441.0,0.05]
[1766346424375,0.01357251,88445.0,88441.0,0.049451]
[1766346425361,0.01357251,88445.0,88441.0,0.046161]
[1766346425759,0.0113062,88447.0,88441.0,0.046161]
[1766346425959,0.01698607,88448.0,88441.0,0.046161]
[1766346427219,0.0113062,88447.0,88441.0,0.046161]
[1766346427431,0.01698607,88448.0,88441.0,0.046161]
[1766346428036,0.00568,88448.0,88441.0,0.046161]
[1766346428325,0.01698607,88448.0,88441.0,0.046161]
[1766346429709,0.00568,88448.0,88441.0,0.046161]
[1766346429908,0.01698607,88448.0,88441.0,0.046161]
[1766346430623,0.00568,88448.0,88441.0,0.046161]
[1766346431003,0.005131,88448.0,88441.0,0.046161]
[1766346431182,0.005131,88448.0,88441.0,0.05746797]
[1766346431782,0.005131,88448.0,88442.0,0.01130684]
[1766346433207,0.005131,88448.0,88443.0,0.01130671]
[1766346433409,0.005131,88448.0,88444.0,0.01130658]
[1766346433627,0.004931,88448.0,88444.0,0.01130658]
[1766346433830,0.004931,88448.0,88443.0,0.01130671]
[1766346435342,0.004931,88448.0,88445.0,0.01130646]
[1766346435570,0.01130595,88455.0,88445.0,0.01130646]
[1766346435733,0.00568,88450.0,88447.0,0.0113062]
[1766346436345,0.00568,88450.0,88447.0,0.06783708]
[1766346440207,0.00568,88450.0,88447.0,0.0113062]
[1766346443062,0.00568,88450.0,88446.0,0.01130633]
[1766346443264,0.00568,88452.0,88448.0,0.11795]
[1766346443442,0.00568,88452.0,88449.0,0.01130595]
[1766346443845,0.00568,88452.0,88448.0,0.12925607]
[1766346444053,0.00568,88452.0,88449.0,0.01130595]
[1766346448587,0.00568,88452.0,88448.0,0.12925607]
[1766346448789,0.00568,88452.0,88449.0,0.01130595]
[1766346448990,0.00568,88452.0,88448.0,0.12925607]
[1766346449415,0.00568,88452.0,88448.0,0.11795]
[1766346452340,0.00568,88454.0,88448.0,0.11795]
[1766346456046,0.00568,88454.0,88445.0,0.01130646]
[1766346456250,0.00568,88454.0,88445.0,0.12832646]
[1766346457001,0.00568,88454.0,88446.0,0.01130633]
[1766346457176,0.00568,88454.0,88445.0,0.12832646]
[1766346457635,0.00568,88454.0,88445.0,0.11702]
[1766346458532,0.00568,88454.0,88445.0,0.12832646]
[1766346458917,0.00568,88454.0,88445.0,0.11702]
[1766346460887,0.00568,88454.0,88448.0,0.01130607]
[1766346461294,0.00568,88454.0,88447.0,0.1283262]
[1766346462735,0.00568,88454.0,88447.0,0.11702]
[1766346464188,0.00568,88454.0,88447.0,0.1283262]
[1766346464564,0.00568,88454.0,88447.0,0.11702]
[1766346470029,0.00568,88454.0,88446.0,0.20771]
[1766346470518,0.01698531,88454.0,88446.0,0.20771]
[1766346471087,0.01130543,88453.0,88446.0,0.20771]
[1766346471271,0.01130543,88453.0,88446.0,0.20761]
[1766346471474,0.01130556,88452.0,88446.0,0.20751]
[1766346472102,0.01130543,88453.0,88446.0,0.20751]
[1766346472933,0.00055,88446.0,88443.0,0.11702]
[1766346473172,1.949e-05,88446.0,88441.0,0.05973351]
[1766346473348,0.01130582,88450.0,88441.0,0.05973351]
[1766346473938,0.01130607,88448.0,88441.0,0.05973351]
[1766346474178,0.0113062,88447.0,88441.0,0.05973351]
[1766346474383,0.01130633,88446.0,88441.0,0.046161]
[1766346474709,0.01130658,88444.0,88441.0,0.046161]
[1766346476221,0.02487897,88445.0,88441.0,0.046161]
[1766346476630,0.01130658,88444.0,88441.0,0.046161]
[1766346476810,0.02487897,88445.0,88441.0,0.046161]
[1766346477704,0.01130658,88444.0,88441.0,0.046161]
[1766346478262,0.02487897,88445.0,88441.0,0.046161]
[1766346480348,0.01698607,88448.0,88441.0,0.046161]
[1766346480349,0.00568,88448.0,88441.0,0.046161]
[1766346480550,0.00568,88448.0,88445.0,0.00053]
[1766346480930,0.01698607,88448.0,88441.0,0.046161]
[1766346484817,0.01698607,88448.0,88440.0,0.00029734]
[1766346485570,0.01130633,88446.0,88440.0,0.00029734]
[1766346485787,0.07351664,88448.0,88440.0,0.00029734]
[1766346485788,0.00568,88448.0,88440.0,0.00029734]
[1766346485998,0.00515,88448.0,88440.0,0.00029734]
[1766346488245,0.00515,88448.0,88443.0,0.19479]
[1766346488673,0.00515,88448.0,88442.0,0.12392]
[1766346488874,0.00515,88448.0,88440.0,0.00029734]
[1766346492454,0.00515,88448.0,88440.0,0.01160444]
[1766346492858,0.00515,88448.0,88440.0,0.00029734]
[1766346497204,0.00515,88448.0,88440.0,0.01160444]
[1766346498765,0.00515,88448.0,88440.0,0.00029734]
[1766346499400,0.00515,88448.0,88440.0,0.01160444]
[1766346500724,0.00568,88447.0,88440.0,0.01160444]
[1766346500900,0.00568,88447.0,88441.0,0.01130697]
[1766346501082,0.00568,88447.0,88445.0,0.12392]
[1766346501243,0.00558,88448.0,88445.0,0.31871]
[1766346501439,0.00568,88448.0,88445.0,0.31871]
[1766346506364,0.00568,88448.0,88444.0,0.12334]
[1766346506365,0.00286327,88448.0,88444.0,0.12334]
[1766346506584,0.00286327,88448.0,88445.0,0.32482]
[1766346506779,0.00286327,88448.0,88446.0,0.12334]
[1766346509614,0.00286327,88448.0,88446.0,0.122791]
[1766346524959,0.00286327,88448.0,88446.0,0.321451]
[1766346528932,0.00286327,88448.0,88446.0,0.19866]
[1766346531547,0.00286327,88448.0,88446.0,0.32254]
[1766346537359,3.27e-06,88448.0,88446.0,0.19866]
[1766346537509,3.27e-06,88448.0,88447.0,0.12388]
[1766346543789,3.27e-06,88448.0,88447.0,0.12333]
[1766346544365,3.27e-06,88448.0,88446.0,0.19866]
[1766346549962,0.02487718,88459.0,88446.0,0.01130633]
[1766346550179,0.01130518,88457.0,88448.0,0.12600607]
[1766346550380,0.01130518,88457.0,88442.0,0.01130518]
[1766346550609,0.01130518,88457.0,88428.0,0.11470258]
[1766346550610,0.02487922,88443.0,88432.0,0.00568]
[1766346550850,0.02487922,88443.0,88430.0,0.00548]
[1766346550851,0.01130684,88442.0,88430.0,0.00548]
[1766346551060,0.01130684,88442.0,88430.0,0.00568]
[1766346551061,0.01130722,88439.0,88430.0,0.00568]
[1766346551518,0.0113071,88440.0,88432.0,0.00024639]
[1766346551761,0.04527224,88439.0,88432.0,0.00024639]
[1766346552089,0.03396502,88439.0,88432.0,0.00024639]
[1766346552430,0.04527224,88439.0,88432.0,0.00024639]
[1766346552795,0.03396502,88439.0,88432.0,0.00024639]
[1766346557227,0.03341602,88439.0,88433.0,0.1147]
[1766346561537,0.01698646,88445.0,88434.0,0.20332]
[1766346561851,0.03341602,88444.0,88438.0,0.1147]
[1766346562267,0.03077174,88444.0,88438.0,0.1147]
[1766346562545,1.74e-06,88445.0,88444.0,0.31857]
[1766346562750,1.74e-06,88445.0,88444.0,0.31802]
[1766346563318,1.74e-06,88445.0,88444.0,0.20332]
[1766346565335,1.74e-06,88445.0,88440.0,0.1147]
[1766346566146,1.74e-06,88445.0,88441.0,0.01356836]
[1766346566337,1.74e-06,88445.0,88441.0,0.13729836]
[1766346567043,0.00568,88450.0,88441.0,0.13729836]
[1766346567399,0.01698556,88450.0,88441.0,0.13729836]
[1766346569378,0.01698556,88450.0,88441.0,0.12373]
[1766346570128,0.02829138,88450.0,88441.0,0.12373]
[1766346570781,0.00837304,88450.0,88441.0,0.12373]
[1766346570980,0.00568,88452.0,88443.0,0.32437]
[1766346571152,0.00575266,88452.0,88444.0,0.12373]
[1766346571991,0.00575266,88452.0,88446.0,0.12373]
[1766346572146,7.266e-05,88452.0,88447.0,0.13729744]
[1766346572368,7.266e-05,88452.0,88448.0,0.32437]
[1766346572570,7.266e-05,88452.0,88449.0,0.0123047]
[1766346572973,7.266e-05,88452.0,88449.0,0.02361065]
[1766346573189,7.266e-05,88452.0,88449.0,0.0123047]
[1766346573394,2.66e-06,88452.0,88449.0,0.13503595]
[1766346574313,2.66e-06,88452.0,88449.0,0.12373]
[1766346574702,2.66e-06,88452.0,88449.0,0.13503595]
[1766346579311,2.66e-06,88452.0,88451.0,0.32774]
[1766346579716,2.66e-06,88452.0,88451.0,0.38426847]
[1766346583623,0.00568,88463.0,88458.0,0.0113048]
[1766346583873,0.00568,88463.0,88458.0,0.0107558]
[1766346586603,0.00568,88463.0,88455.0,0.05652591]
[1766346586779,0.00568,88463.0,88457.0,0.01130492]
[1766346586978,0.00568,88463.0,88458.0,0.0113048]
[1766346588215,0.00568,88463.0,88457.0,0.01130492]
[1766346590435,0.00568,88463.0,88458.0,0.0113048]
[1766346592828,0.00568,88463.0,88460.0,0.01130454]
[1766346592829,0.005131,88463.0,88460.0,0.01130454]
[1766346593085,0.01130173,88482.0,88467.0,0.13008364]
[1766346593288,0.01925251,88478.0,88468.0,0.13008352]
[1766346593507,0.0001,88475.0,88468.0,0.13008352]
[1766346593706,0.0001,88475.0,88469.0,0.01130339]
[1766346593919,0.0001,88475.0,88468.0,0.11878]
[1766346594255,0.0001,88475.0,88469.0,0.01130339]
[1766346594906,0.00568,88478.0,88470.0,0.01130326]
[1766346595130,0.00568,88478.0,88473.0,0.01130288]
[1766346595335,0.00568,88478.0,88474.0,0.0135633]
[1766346595563,0.00568,88478.0,88473.0,0.01130288]
[1766346595760,0.00568,88478.0,88472.0,0.01130301]
[1766346595964,0.00568,88478.0,88473.0,0.01130288]
[1766346596180,0.06130109,88487.0,88473.0,0.06781704]
[1766346596378,0.00568,88483.0,88474.0,0.01130275]
[1766346596542,0.00568,88483.0,88476.0,0.0113025]
[1766346597829,0.00568,88483.0,88475.0,0.01130262]
[1766346598405,0.00568,88483.0,88477.0,0.01130237]
[1766346598616,0.00568,88483.0,88476.0,0.0113025]
[1766346598816,0.00568,88483.0,88477.0,0.01130237]
[1766346599240,0.00568,88483.0,88476.0,0.0113025]
[1766346599443,0.00568,88483.0,88477.0,0.01130237]
[1766346599988,0.00568,88483.0,88476.0,0.1300825]
[1766346600514,0.00568,88483.0,88477.0,0.01130237]
[1766346600716,0.00568,88483.0,88476.0,0.11878]
[1766346600911,0.00568,88483.0,88477.0,0.01130237]
[1766346601117,0.00568,88483.0,88480.0,0.01130198]
[1766346601324,0.00568,88483.0,88479.0,0.01130211]
[1766346602664,0.00568,88483.0,88480.0,0.01130198]
[1766346602846,0.00568,88483.0,88479.0,0.01130211]
[1766346603276,0.00568,88483.0,88478.0,0.01130224]
[1766346603804,0.00523,88483.0,88480.0,0.11878]
[1766346604004,0.00523,88483.0,88480.0,0.13008198]
[1766346605762,0.00193,88483.0,88480.0,0.13008198]
[1766346608065,0.00193,88483.0,88480.0,0.118231]
[1766346609223,0.00193,88483.0,88480.0,0.12953298]
[1766346610256,0.00193,88483.0,88480.0,0.118231]
[1766346610620,0.05568,88487.0,88480.0,0.118231]
[1766346611020,0.05568,88487.0,88480.0,0.12953298]
[1766346611427,0.05568,88487.0,88481.0,0.01130186]
[1766346611672,0.05568,88487.0,88482.0,0.01130173]
[1766346613122,0.05568,88487.0,88483.0,0.0113016]
[1766346613270,0.05568,88487.0,88482.0,0.01130173]
[1766346615635,0.05568,88487.0,88483.0,0.0113016]
[1766346616000,0.05568,88487.0,88482.0,0.01130173]
[1766346616874,0.05568,88487.0,88480.0,0.01130198]
[1766346617078,0.00055,88482.0,88481.0,0.01130186]
[1766346617620,0.05568,88487.0,88482.0,0.01130173]
[1766346619457,0.05568,88487.0,88483.0,0.0113016]
[1766346619835,0.05568,88487.0,88484.0,0.01130147]
[1766346620037,0.05568,88487.0,88483.0,0.0113016]
[1766346620237,0.05548,88487.0,88482.0,0.01130173]
[1766346620438,0.00055,88483.0,88481.0,0.01110186]
[1766346620817,0.05548,88487.0,88482.0,0.01130173]
[1766346625059,0.05548,88487.0,88480.0,0.06781131]
[1766346625060,0.04524,88500.0,88480.0,0.06781131]
[1766346625061,0.03050126,88507.0,88502.0,0.01129917]
[1766346625260,0.07225172,88521.0,88504.0,0.01357251]
[1766346625261,0.01129688,88520.0,88504.0,0.01357251]
[1766346625463,0.01129688,88520.0,88503.0,0.13547886]
[1766346625464,0.01129713,88518.0,88503.0,0.01130032]
[1766346625781,0.00126255,88517.0,88505.0,0.00568]
[1766346625987,0.00126255,88518.0,88505.0,0.01697879]
[1766346626184,0.01255968,88518.0,88505.0,0.01642879]
[1766346626368,0.01129726,88517.0,88505.0,0.00513]
[1766346626747,0.01129726,88517.0,88503.0,0.05880915]
[1766346626748,0.01129752,88515.0,88503.0,0.03393759]
[1766346626960,0.01129752,88515.0,88506.0,0.00568]
[1766346627166,0.02487003,88515.0,88506.0,0.00568]
[1766346627487,0.00126255,88514.0,88506.0,0.00568]
[1766346628321,0.01357251,88515.0,88506.0,1.00568]
[1766346628522,0.00126255,88514.0,88506.0,1.00568]
[1766346629163,0.01129739,88516.0,88506.0,0.78639]
[1766346629769,0.00126255,88515.0,88506.0,0.78639]
[1766346630199,0.01255994,88516.0,88506.0,0.78639]
[1766346630602,0.01129777,88513.0,88506.0,0.78639]
[1766346630808,0.01256019,88514.0,88506.0,0.78639]
[1766346631473,0.01129828,88509.0,88506.0,3.85e-06]
[1766346631708,0.01129828,88509.0,88496.0,0.00568]
[1766346631709,0.0172238,88513.0,88496.0,0.01256019]
[1766346631710,0.01129917,88502.0,88496.0,0.01256019]
[1766346631862,0.01129917,88502.0,88450.0,0.20099999]
[1766346631863,0.00024603,88513.0,88482.0,0.00568]
[1766346631864,0.0113002,88494.0,88482.0,0.00568]
[1766346632060,0.01129994,88496.0,88482.0,0.01130173]
[1766346632236,0.0113002,88494.0,88483.0,0.00568]
[1766346632441,0.01256262,88495.0,88483.0,0.00568]
[1766346632620,0.03055232,88497.0,88484.0,0.01130147]
[1766346632621,0.00568,88497.0,88484.0,0.01130147]
[1766346632831,0.00568,88497.0,88486.0,0.01130122]
[1766346633029,0.00568,88497.0,88487.0,0.01130109]
[1766346633206,0.00568,88497.0,88486.0,0.01130122]
[1766346633630,0.00568,88497.0,88485.0,0.01130135]
[1766346634232,0.00568,88497.0,88486.0,0.01130122]
[1766346635676,0.01129969,88496.0,88486.0,0.01130122]
[1766346639994,0.01129969,88496.0,88485.0,0.01130135]
[1766346640195,0.01075069,88496.0,88489.0,0.01130083]
[1766346643535,0.01075069,88496.0,88491.0,0.01130058]
[1766346644184,0.01075069,88496.0,88492.0,0.01130045]
[1766346644801,0.01075069,88496.0,88493.0,0.01130032]
[1766346645390,0.01075069,88496.0,88492.0,0.01130045]
[1766346645715,0.01075069,88496.0,88493.0,0.01130032]
[1766346646072,6.9e-07,88496.0,88493.0,0.01130032]
[1766346646328,6.9e-07,88496.0,88492.0,0.13234045]
[1766346646572,6.9e-07,88496.0,88493.0,0.01130032]
[1766346647246,6.9e-07,88496.0,88494.0,0.12104]
[1766346648648,0.00568,88502.0,88494.0,0.1323402]
[1766346648853,0.03394454,88501.0,88493.0,0.22581032]
[1766346649067,0.03394454,88501.0,88494.0,0.0113002]
[1766346650506,0.03394454,88501.0,88493.0,0.21451]
[1766346650746,0.03394454,88501.0,88494.0,0.0113002]
[1766346652362,0.03394454,88501.0,88493.0,0.22581032]
[1766346655466,0.03394454,88501.0,88494.0,0.0113002]
[1766346655914,0.03394454,88501.0,88493.0,0.22581032]
[1766346657750,0.03394454,88501.0,88494.0,0.0113002]
[1766346658100,0.03394454,88501.0,88495.0,0.01130007]
[1766346659296,0.03394454,88501.0,88494.0,0.0113002]
[1766346659499,0.03394454,88501.0,88495.0,0.01130007]
[1766346659775,0.03394454,88501.0,88494.0,0.0113002]
[1766346659997,0.02310528,88501.0,88497.0,0.12104]
[1766346660200,0.01697828,88509.0,88498.0,0.12104]
[1766346660445,0.03394281,88503.0,88498.0,0.12104]
[1766346661371,0.01697828,88509.0,88503.0,0.00055]
[1766346661573,0.03962281,88509.0,88503.0,0.00055]
[1766346661945,0.03962281,88509.0,88496.0,0.06779945]
[1766346661946,0.00568,88509.0,88497.0,0.01129981]
[1766346662149,0.00568,88509.0,88498.0,0.01697969]
[1766346662353,0.00568,88509.0,88498.0,0.00568]
[1766346662750,0.00568,88509.0,88503.0,0.01129905]
[1766346662956,0.00568,88509.0,88500.0,0.05649703]
[1766346663137,0.00568,88509.0,88501.0,0.0112993]
[1766346663339,0.00568,88509.0,88500.0,0.01129943]
[1766346663539,0.00568,88509.0,88502.0,0.01129917]
[1766346664356,0.00568,88509.0,88501.0,0.0112993]
[1766346664566,0.00568,88509.0,88503.0,0.13233905]
[1766346664764,0.00568,88509.0,88504.0,0.01129892]
[1766346664940,0.00568,88509.0,88505.0,0.01129879]
[1766346665367,0.00024603,88513.0,88504.0,0.01129892]
[1766346665596,0.00024603,88513.0,88510.0,0.01129815]
[1766346665757,3e-08,88513.0,88510.0,0.01129815]
[1766346668001,3e-08,88513.0,88510.0,0.01105315]
[1766346673780,0.00568,88519.0,88511.0,0.01129803]
[1766346675001,0.00568,88519.0,88509.0,0.01129828]
[1766346675300,0.00568,88519.0,88510.0,0.01129815]
[1766346675851,0.00568,88519.0,88509.0,0.01129828]
[1766346676242,0.00055,88509.0,88507.0,0.11766]
[1766346676604,0.00568,88519.0,88509.0,0.01129828]
[1766346676827,0.00568,88519.0,88508.0,0.01129841]
[1766346677047,0.00568,88519.0,88509.0,0.01129828]
[1766346677569,0.00568,88519.0,88510.0,0.01129815]
[1766346678217,0.00568,88519.0,88511.0,0.01129803]
[1766346678947,0.00568,88519.0,88510.0,0.01129815]
[1766346679932,0.00568,88519.0,88511.0,0.01129803]
[1766346680375,0.00568,88519.0,88509.0,0.01129828]
[1766346680580,0.00568,88519.0,88510.0,0.01129815]
[1766346680950,0.00568,88519.0,88512.0,0.0112979]
[1766346681146,0.00558,88519.0,88512.0,0.0112979]
[1766346681391,0.00548,88519.0,88509.0,0.01129828]
[1766346681551,0.00548,88519.0,88510.0,0.01129815]
[1766346682051,0.00548,88519.0,88509.0,0.01129828]
[1766346682255,0.00548,88519.0,88510.0,0.01129815]
[1766346682893,0.00548,88519.0,88509.0,0.01129828]
[1766346683278,0.00548,88519.0,88510.0,0.01129815]
[1766346684574,0.00548,88519.0,88511.0,0.01129803]
[1766346685317,0.00548,88519.0,88513.0,0.01129777]
[1766346685532,0.004931,88519.0,88514.0,0.01129764]
[1766346686135,0.004931,88519.0,88515.0,0.01129752]
[1766346686337,0.004931,88519.0,88513.0,0.01129777]
[1766346686550,0.004931,88519.0,88511.0,0.01129803]
[1766346686760,0.004931,88519.0,88512.0,0.0112979]
[1766346687133,0.004931,88519.0,88513.0,0.01129777]
[1766346687306,0.00035752,88520.0,88513.0,0.01129777]
[1766346688277,0.00035752,88520.0,88514.0,0.01129764]
[1766346688479,0.00035752,88520.0,88513.0,0.01129777]
[1766346688699,0.00035752,88520.0,88514.0,0.01129764]
[1766346690265,0.00035752,88520.0,88515.0,0.01129752]
[1766346690489,0.00035752,88520.0,88514.0,0.01129764]
[1766346690686,0.00035752,88520.0,88513.0,0.01129777]
[1766346690926,0.00035752,88520.0,88514.0,0.01129764]
[1766346691353,0.00035752,88520.0,88516.0,0.01129739]
[1766346691538,0.00035752,88520.0,88516.0,0.02485426]
[1766346691741,0.00035752,88520.0,88516.0,0.01355687]
[1766346692886,0.00568,88524.0,88518.0,0.11809]
[1766346692887,0.00305574,88524.0,88518.0,0.11809]
[1766346693120,0.00312034,88524.0,88519.0,0.11809]